fUSD/lending_fUSD_20240801
["ID","MTS","AMOUNT","RATE_DAILY","PERIOD"]
[333834151,1722538252522,-150.0,0.00024243,2]
[333834152,1722538252533,-150.0,0.0002429,2]
[333834153,1722538252543,-150.0,0.00024313,2]
[333834154,1722538252554,-150.0,0.00024317,2]
[333834155,1722538252565,-150.0,0.00024324,2]
[333834156,1722538252577,-150.0,0.0002438,2]
[333834157,1722538252589,-150.0,0.00024388,2]
[333834158,1722538252602,-150.0,0.00024419,2]
[333834159,1722538252614,-150.0,0.0002444,2]
[333834160,1722538252625,-150.0,0.0002444,2]
[333834161,1722538252636,-150.0,0.00024454,2]
[333834162,1722538252647,-150.0,0.00024459,2]
[333834163,1722538252658,-150.0,0.00024497,2]
[333834164,1722538252670,-150.0,0.00024514,2]
[333834165,1722538252681,-150.0,0.00024537,2]
[333834166,1722538252695,-150.0,0.00024558,2]
[333834168,1722538252707,-150.0,0.00024563,2]
[333834169,1722538252719,-150.0,0.00024571,2]
[333834170,1722538252729,-150.0,0.00024618,2]
[333834171,1722538252740,-150.0,0.00024657,2]
[333834172,1722538252750,-43321.3926022,0.00025,2]
[333834173,1722538252763,-574.83267107,0.00025,2]
[333834174,1722538252775,-1180.33,0.00025,2]
[333834175,1722538252787,-1940.70551825,0.00025,2]
[333834176,1722538252812,-150.0,0.00024431,2]
[333834177,1722538252821,-150.0,0.00024503,2]
[333834178,1722538252832,-150.0,0.00024507,2]
[333834179,1722538252842,-137.2050527,0.00025,2]
[333834180,1722538252857,-1502.556,0.00025,2]
[333834181,1722538252870,-507.49512115,0.00025,2]
[333834182,1722538252882,-505.0919612,0.00025,2]
[333834183,1722538252914,-150.0,0.00023729,2]
[333834184,1722538252924,-150.0,0.00024423,2]
[333834185,1722538252934,-150.0,0.00024552,2]
[333834186,1722538252947,-150.0,0.00024597,2]
[333834187,1722538252958,-150.0,0.00024613,2]
[333834188,1722538252968,-2979.96239544,0.00025,2]
[333834189,1722538252979,-4681.0,0.00025,2]
[333834214,1722538623824,800.0,0.00026986,120]
[333834215,1722538632775,152.27,0.0001337,30]
[333834242,1722539159965,152.27,0.0001337,30]
[333834259,1722539341227,-170.34699346,0.0001,2]
[333834260,1722539341253,-523.06558271,0.00010538,2]
[333834261,1722539341279,-307.38,0.00010638,2]
[333834262,1722539341305,-260.06069842,0.00010669,2]
[333834263,1722539341337,-263.00488428,0.00010669,2]
[333834264,1722539341363,-523.0655827,0.00010799,2]
[333834265,1722539341388,-410.41803763,0.00011,2]
[333834332,1722539432854,-290.57147706,0.00011,2]
[333834334,1722539432864,-181.66385154,0.00011,2]
[333834336,1722539432873,-412.76630026,0.00011,2]
[333834338,1722539432883,-109.87412558,0.00011004,2]
[333834340,1722539432895,-190.12587442,0.00011004,2]
[333834342,1722539432905,-350.88334548,0.00011005,2]
[333834345,1722539432917,-7308.17745452,0.00011005,2]
[333834347,1722539432927,-2628.45942536,0.00011005,2]
[333834349,1722539432937,-438.97877864,0.00011005,2]
[333834351,1722539432949,-3624.76224,0.00011005,2]
[333834353,1722539432964,-36720.90528931,0.00011005,2]
[333834356,1722539432975,-27639.6713085,0.00011005,2]
[333834358,1722539432987,-7729.42497305,0.00011005,2]
[333834359,1722539432997,-684.71908266,0.00011005,2]
[333834360,1722539433008,-2900.98100737,0.00011005,2]
[333834361,1722539433019,-865.31617129,0.00011005,2]
[333834362,1722539433031,-252.656304,0.00011005,2]
[333834366,1722539433455,-567.14,0.00011005,2]
[333834367,1722539434960,-857.25,0.00011005,2]
[333834368,1722539434972,-595.06610147,0.00011005,2]
[333834369,1722539434985,-461.9968,0.00011005,2]
[333834370,1722539434998,-2538.47731458,0.00011005,2]
[333834371,1722539435011,-502.90722895,0.00011005,2]
[333834372,1722539435022,-8311.72992793,0.00011005,2]
[333834373,1722539435078,-631.109999,0.00011005,2]
[333834380,1722539438502,-155.0,0.00011,2]
[333834381,1722539438512,-6290.00021091,0.00011005,2]
[333834382,1722539438525,-283.58033698,0.00011005,2]
[333834383,1722539438534,-3303.99824447,0.00011005,2]
[333834384,1722539438543,-7390.87566083,0.00011105,2]
[333834385,1722539438710,-563.31326908,0.00011105,2]
[333834386,1722539438723,-1543.46536243,0.00011105,2]
[333834387,1722539438734,-2792.47538781,0.00011105,2]
[333834388,1722539438745,-3177.83249825,0.00011105,2]
[333834389,1722539438755,-8956.01536288,0.00011186,2]
[333834399,1722539439190,-798.50194359,0.00011186,2]
[333834400,1722539439217,-569.89984797,0.00011186,2]
[333834401,1722539439231,-1520.39891193,0.00011186,2]
[333834407,1722539440478,-299.71268725,0.00011,2]
[333834408,1722539440489,-23847.32728645,0.00011186,2]
[333834409,1722539440499,-332.9017459,0.00011186,2]
[333834410,1722539440511,-13693.14152,0.00011186,2]
[333834411,1722539440523,-6946.52823739,0.00011186,2]
[333834412,1722539440535,-1664.05499005,0.00011186,2]
[333834413,1722539440545,-1351.0,0.00011186,2]
[333834414,1722539440555,-230.52211459,0.00011324,2]
[333834415,1722539440567,-465.635,0.00011324,2]
[333834416,1722539440579,-675.56489,0.00011324,2]
[333834417,1722539440591,-1177.55818369,0.00011324,2]
[333834418,1722539440603,-7974.91981175,0.00011324,2]
[333834419,1722539440616,-5278.30442203,0.00011324,2]
[333834420,1722539440664,-43.47976667,0.00011324,2]
[333834421,1722539440674,-541.73,0.00011794,2]
[333834422,1722539440685,-5398.55869267,0.0001185,2]
[333834423,1722539440699,-8083.40753561,0.0001185,2]
[333834424,1722539440710,-3079.05538157,0.00011896,2]
[333834425,1722539440720,-5000.0,0.00011896,2]
[333834426,1722539440730,-7269.27662273,0.00011959,2]
[333834427,1722539440741,-550.0,0.00012,2]
[333834428,1722539440751,-23900.0,0.00012008,2]
[333834429,1722539440760,-1000.0,0.00012025,2]
[333834430,1722539440771,-420.0,0.00012092,2]
[333834431,1722539440781,-250.0,0.00012098,2]
[333834432,1722539440791,-1055.76471652,0.00012158,2]
[333834433,1722539440803,-416.82528348,0.00012158,2]
[333834434,1722539440813,-994.37471652,0.0001226,2]
[333834435,1722539440824,-1505.62528348,0.0001226,2]
[333834436,1722539440834,-124.3556585,0.00012391,2]
[333834437,1722539440846,-2019.42710678,0.00012391,2]
[333834438,1722539440856,-2727.16525437,0.00012397,2]
[333834440,1722539440866,-1027.20867879,0.000125,2]
[333834442,1722539440876,-250.0,0.00012512,2]
[333834444,1722539440886,-1926.73701932,0.0001254,2]
[333834446,1722539440896,-3303.99824447,0.00012549,2]
[333834448,1722539440917,-195.82,0.00012563,2]
[333834450,1722539440926,-993.42222061,0.00012581,2]
[333834453,1722539440938,-315.63326285,0.00012581,2]
[333834455,1722539440947,-1183.81771126,0.00012666,2]
[333834457,1722539440962,-1049.57124552,0.00012666,2]
[333834459,1722539440972,-499.99,0.00012681,2]
[333834461,1722539440982,-531.73631271,0.00012681,2]
[333834463,1722539440991,-531.73631271,0.00012681,2]
[333834464,1722539441001,-400.85725149,0.00012681,2]
[333834466,1722539441011,-246.00196782,0.0001269,2]
[333834468,1722539441021,-202.43790103,0.0001269,2]
[333834470,1722539441030,-686.31468402,0.0001269,2]
[333834472,1722539441040,-349.35447946,0.00012696,2]
[333834474,1722539441050,-357.09487431,0.00012696,2]
[333834476,1722539441059,-349.35447946,0.00012696,2]
[333834478,1722539441068,-379.95855132,0.00012696,2]
[333834480,1722539441078,-159.44788772,0.00012696,2]
[333834482,1722539441087,-155.0,0.00012696,2]
[333834484,1722539441097,-308.97616233,0.00012696,2]
[333834486,1722539441107,-374.87468422,0.00012696,2]
[333834488,1722539441116,-171.86937444,0.00012696,2]
[333834491,1722539441136,-336.70890687,0.00012696,2]
[333834493,1722539441147,-155.0,0.00012696,2]
[333834495,1722539441159,-194.69816126,0.00012696,2]
[333834497,1722539441169,-171.86937444,0.00012749,2]
[333834499,1722539441179,-555.0,0.00012749,2]
[333834501,1722539441188,-156.66771057,0.00012749,2]
[333834503,1722539441198,-206.56189729,0.00012749,2]
[333834505,1722539441208,-555.0,0.00012749,2]
[333834507,1722539441218,-155.0,0.00012749,2]
[333834509,1722539441228,-188.60979296,0.00012818,2]
[333834512,1722539441240,-164.23596765,0.00012818,2]
[333834514,1722539441251,-164.23596765,0.00012826,2]
[333834516,1722539441261,-400.0,0.00012826,2]
[333834518,1722539441274,-155.0,0.00012826,2]
[333834520,1722539441284,-528.40182091,0.00012826,2]
[333834522,1722539441295,-400.0,0.00012826,2]
[333834524,1722539441305,-438.20136165,0.00012826,2]
[333834526,1722539441315,-155.0,0.00012826,2]
[333834528,1722539441325,-519.62430261,0.00012855,2]
[333834530,1722539441335,-327.928426,0.00012855,2]
[333834532,1722539441345,-281.48530578,0.00012883,2]
[333834534,1722539441355,-454.12693481,0.00012883,2]
[333834536,1722539441365,-307.38,0.00012901,2]
[333834538,1722539441375,-178.34,0.00012906,2]
[333834540,1722539441384,-200.0,0.0001295,2]
[333834542,1722539441394,-155.0,0.00013,2]
[333834544,1722539441404,-1100.91,0.00013132,2]
[333834546,1722539441414,-400.0,0.00013143,2]
[333834548,1722539441424,-587.0,0.00013288,2]
[333834550,1722539441434,-170.34699346,0.00013333,2]
[333834552,1722539441444,-449.14284782,0.0001337,2]
[333834554,1722539441454,-1049.72746869,0.0001337,2]
[333834557,1722539441464,-600.14164396,0.00013489,2]
[333834558,1722539441475,-600.14164396,0.00013489,2]
[333834560,1722539441485,-236.10516886,0.0001351,2]
[333834562,1722539441495,-1000.0,0.00013528,2]
[333834564,1722539441505,-2634.171,0.00013589,2]
[333834566,1722539441514,-1798.452,0.00013589,2]
[333834568,1722539441524,-21729.0,0.00013589,2]
[333834570,1722539441535,-150.0,0.00013589,2]
[333834572,1722539441545,-1074.0,0.00013589,2]
[333834574,1722539441555,-2751.0,0.00013699,2]
[333834576,1722539441564,-200.0,0.00013699,2]
[333834578,1722539441574,-500.0,0.00013699,2]
[333834580,1722539441585,-221.674,0.00013789,2]
[333834582,1722539441595,-1370.0,0.00013789,2]
[333834584,1722539441606,-3052.19468915,0.00013789,2]
[333834586,1722539441623,-233.80531085,0.00013789,2]
[333834588,1722539441633,-3712.29468915,0.000138,3]
[333834591,1722539441647,-1092.27862809,0.000138,3]
[333834593,1722539441665,-27338.29303366,0.000138,3]
[333834595,1722539441675,-718.33,0.00013973,2]
[333834597,1722539441687,-3400.91875942,0.00013989,2]
[333834599,1722539441698,-600.0,0.00014,2]
[333834601,1722539441708,-3303.99824447,0.00014093,2]
[333834603,1722539441718,-32142.8663509,0.00014245,3]
[333834605,1722539441728,-32875.0,0.00014255,2]
[333834607,1722539441738,-400.0,0.0001432,2]
[333834609,1722539441748,-864.02247026,0.00014519,2]
[333834611,1722539441759,-823.0,0.00014602,2]
[333834613,1722539441769,-400.0,0.00014785,2]
[333834615,1722539441779,-204.2444762,0.00014899,2]
[333834617,1722539441789,-1256.27829447,0.00014988,2]
[333834619,1722539441799,-20312.47697377,0.0001499,3]
[333834622,1722539441811,-1506.65874504,0.0001499,3]
[333834624,1722539441823,-2409.35153101,0.0001499,3]
[333834790,1722539443474,-340.68338463,0.00011,4]
[333834793,1722539443484,-953.70061537,0.00011005,2]
[333834795,1722539443496,-1012.97035628,0.00011005,2]
[333834797,1722539443507,-20492.59590905,0.00011005,2]
[333834799,1722539443519,-823.08195931,0.00011005,2]
[333834808,1722539443591,-8971.99851249,0.00011005,2]
[333834810,1722539443603,-530.36582243,0.00011005,2]
[333834812,1722539443617,-293.75433028,0.00011005,2]
[333834824,1722539443717,-1328.64859932,0.00011005,2]
[333834826,1722539443729,-997.650002,0.00011005,2]
[333834828,1722539443741,-328.32741597,0.00011005,2]
[333835032,1722539446955,-155.0,0.00011,2]
[333835033,1722539446965,-1605.71787808,0.00011005,2]
[333835034,1722539446975,-1183.81771126,0.00012665,2]
[333835035,1722539446984,-349.35447946,0.0001269,2]
[333835036,1722539446994,-519.62430261,0.00012826,2]
[333835037,1722539447003,-947.72324924,0.00013333,2]
[333835038,1722539447013,-1112.24767944,0.00013483,2]
[333835039,1722539447022,-7624.32303179,0.0001499,3]
[333835040,1722539447034,-290.05606929,0.0001499,3]
[333835041,1722539447044,-42377.8007446,0.00015,2]
[333835042,1722539447053,-20021.96435556,0.00015,7]
[333835043,1722539447063,-260.0,0.00015,2]
[333835044,1722539447072,-1761.0,0.00015,2]
[333835045,1722539447081,-996.86,0.00015,2]
[333835046,1722539447091,-1000.0,0.00015031,2]
[333835047,1722539447100,-300.0,0.00015068,2]
[333835048,1722539447110,-307.38,0.00015165,2]
[333835049,1722539447119,-3303.99824447,0.00015637,2]
[333835050,1722539447128,-386.5605994,0.0001587,2]
[333835051,1722539447138,-236.40881395,0.00015912,2]
[333835052,1722539447147,-414.41065523,0.00015912,2]
[333835053,1722539447156,-650.0,0.00016,2]
[333835054,1722539447166,-270.28818504,0.00016033,2]
[333835055,1722539447175,-1152.0,0.00016046,2]
[333835056,1722539447185,-152.98,0.00016077,2]
[333835057,1722539447194,-152.98,0.00016081,2]
[333835058,1722539447203,-152.98,0.00016085,2]
[333835059,1722539447214,-152.98,0.00016089,2]
[333835060,1722539447223,-152.98,0.00016093,2]
[333835061,1722539447232,-600.0,0.00016097,2]
[333835062,1722539447241,-152.98,0.00016098,2]
[333835063,1722539447250,-152.98,0.00016102,2]
[333835064,1722539447259,-152.98,0.00016106,2]
[333835065,1722539447269,-152.98,0.0001611,2]
[333835066,1722539447278,-152.98,0.00016115,2]
[333835067,1722539447287,-5793.37,0.00016116,2]
[333835068,1722539447296,-152.98,0.00016119,2]
[333835069,1722539447306,-152.98,0.00016123,2]
[333835070,1722539447315,-152.98,0.00016127,2]
[333835071,1722539447324,-152.98,0.00016131,2]
[333835072,1722539447333,-152.98,0.00016136,2]
[333835073,1722539447342,-152.98,0.0001614,2]
[333835074,1722539447352,-152.98,0.00016144,2]
[333835075,1722539447361,-996.86,0.00016145,2]
[333835076,1722539447370,-152.98,0.00016148,2]
[333835077,1722539447380,-152.98,0.00016152,2]
[333835078,1722539447389,-152.98,0.00016157,2]
[333835079,1722539447399,-526.08215279,0.00016159,2]
[333835080,1722539447408,-400.0,0.00016428,2]
[333835081,1722539447426,-300.0,0.00016438,2]
[333835082,1722539447435,-274.86017969,0.00016534,2]
[333835083,1722539447465,-725.13982031,0.00016534,2]
[333835084,1722539447474,-8141.59,0.00016589,2]
[333835085,1722539447484,-150.0,0.00016589,2]
[333835086,1722539447494,-64285.7327019,0.00016966,3]
[333835087,1722539447503,-96428.5990528,0.00016976,3]
[333835088,1722539447513,-126863.95662,0.00016976,3]
[333835089,1722539447522,-249362.12,0.00016986,2]
[333835090,1722539447533,-3303.99824447,0.00017181,2]
[333835091,1722539447542,-159.49981563,0.0001719,2]
[333835092,1722539447552,-996.86,0.0001729,2]
[333835093,1722539447561,-32142.8663509,0.00017299,3]
[333835094,1722539447571,-167.0,0.00017309,2]
[333835095,1722539447581,-307.38,0.00017429,2]
[333835096,1722539447590,-1613.0,0.00017632,2]
[333835097,1722539447600,-167.0,0.0001788,2]
[333835098,1722539447610,-502.85867581,0.00018,2]
[333835099,1722539447623,-227.50000335,0.00018,2]
[333835100,1722539447633,-1000.0,0.00018037,2]
[333835101,1722539447642,-800.0,0.00018069,2]
[333835102,1722539447652,-400.0,0.00018071,2]
[333835103,1722539447665,-996.86,0.00018435,2]
[333835104,1722539447679,-167.0,0.00018452,2]
[333835105,1722539447688,-3303.99824447,0.00018724,2]
[333835106,1722539447700,-155.0,0.00018898,2]
[333835107,1722539447711,-200.34360507,0.00019,2]
[333835108,1722539447720,-167.0,0.00019023,2]
[333835109,1722539447729,-155.0,0.00019177,2]
[333835110,1722539447739,-2258.0,0.00019376,2]
[333835111,1722539447748,-996.86,0.0001958,2]
[333835112,1722539447758,-150.0,0.00019589,2]
[333835113,1722539447768,-167.0,0.00019595,2]
[333835114,1722539447777,-307.38,0.00019693,2]
[333835115,1722539447787,-400.0,0.00019714,2]
[333835116,1722539447797,-2383.95531201,0.00019899,2]
[333835117,1722539447806,-735.0,0.0002,2]
[333835118,1722539447815,-1282.3416809,0.0002,2]
[333835119,1722539447825,-150.0,0.0002,2]
[333835120,1722539447835,-529.0,0.0002,2]
[333835121,1722539447844,-150.0,0.0002,2]
[333835122,1722539447854,-2000.0,0.00020003,2]
[333835123,1722539447863,-500.0,0.00020005,2]
[333835124,1722539447872,-500.0,0.00020041,2]
[333835125,1722539447882,-167.0,0.00020166,2]
[333835126,1722539447892,-174.20930586,0.0002018,2]
[333835127,1722539447903,-500.0,0.00020206,2]
[333835128,1722539447912,-500.0,0.00020217,2]
[333835129,1722539447926,-500.0,0.00020232,2]
[333835130,1722539447936,-3303.99824447,0.00020268,2]
[333835131,1722539447946,-11533.0869655,0.00020376,4]
[333835132,1722539447956,-301.97420716,0.0002038,2]
[333835133,1722539447965,-301.97420716,0.0002038,2]
[333835134,1722539447975,-12068.62159755,0.0002038,2]
[333835135,1722539447984,-1200.0,0.00020386,2]
[333835136,1722539447993,-1200.0,0.00020389,2]
[333835137,1722539448002,-718.33,0.00020447,2]
[333835138,1722539448012,-172.68,0.00020548,2]
[333835139,1722539448023,-500.0,0.00020579,2]
[333835140,1722539448033,-155.0,0.00020588,2]
[333835141,1722539448043,-4373.0,0.000207,5]
[333835142,1722539448052,-996.86,0.00020725,2]
[333835143,1722539448062,-155.0,0.00020821,2]
[333835144,1722539448072,-500.0,0.00020826,2]
[333835145,1722539448082,-500.0,0.00020874,2]
[333835146,1722539448092,-500.0,0.00020921,2]
[333835147,1722539448102,-128571.465404,0.0002098,4]
[333835148,1722539448112,-22725.65463612,0.0002098,4]
[333835149,1722539448125,-253.52,0.0002098,4]
[333835150,1722539448136,-3605.49445038,0.0002098,4]
[333835151,1722539448148,-11160.0,0.0002098,4]
[333835206,1722540112853,154.97,0.0001429,30]
[333835258,1722540587480,154.97,0.0001337,30]
[333835273,1722540631569,-230.53,0.0001033,2]
[333835274,1722540631578,-1036.39979355,0.00010986,2]
[333835275,1722540631588,-159.49981563,0.00010986,2]
[333835276,1722540631597,-1428.70218225,0.0001099,3]
[333835277,1722540631609,-655.60712406,0.0001099,3]
[333835278,1722540631641,-20495.25029444,0.0001099,3]
[333835279,1722540631651,-163.10359293,0.00010997,2]
[333835280,1722540631662,-1304.82874344,0.00010997,2]
[333835281,1722540631672,-295.97433463,0.00010999,2]
[333835282,1722540631681,-2608.41749442,0.00011,2]
[333835283,1722540631693,-9544.17950565,0.00011,2]
[333835284,1722540631705,-251.03914311,0.00011,2]
[333835285,1722540631717,-811.69217936,0.00011,2]
[333835286,1722540631729,-725.44019041,0.00011,2]
[333835287,1722540631790,-316.93995062,0.00011,2]
[333835304,1722540637487,-498.35828287,0.00011,2]
[333835305,1722540637813,-13211.39102674,0.00011,2]
[333835308,1722540637828,-2033.01980657,0.00011,2]
[333835324,1722540638324,-535.43603324,0.00011,2]
[333835344,1722540641688,-1730.84596,0.00011,2]
[333835345,1722540641699,-698.50638546,0.00011,2]
[333835346,1722540641711,-617.72657266,0.00011,2]
[333835347,1722540641723,-10448.66530991,0.00011,2]
[333835348,1722540641734,-1720.07733724,0.00011,2]
[333835349,1722540641745,-25426.752,0.00011,2]
[333835350,1722540641756,-41374.91738175,0.00011,2]
[333835351,1722540641767,-21256.29782865,0.00011,2]
[333835352,1722540641783,-128412.03591141,0.00011,2]
[333835353,1722540641794,-493.87639421,0.00011,2]
[333835354,1722540641805,-1485.1775798,0.00011,2]
[333835355,1722540641816,-400.81331879,0.00011,2]
[333835356,1722540641836,-1999.524,0.00011,2]
[333835357,1722540641848,-345835.1280606,0.00011,2]
[333835366,1722540642580,-1562.2,0.00011,2]
[333835367,1722540642591,-634.14,0.00011,2]
[333835368,1722540642603,-3168.90401308,0.00011,2]
[333835369,1722540642648,-327.12129972,0.00011,2]
[333835370,1722540642718,-500.32600203,0.00011,2]
[333835371,1722540642729,-1596.30903577,0.00011,2]
[333835375,1722540643141,-57693.21817411,0.00011,2]
[333835376,1722540645696,-3588.56393143,0.00011,2]
[333835377,1722540645707,-9049.34034,0.00011,2]
[333835378,1722540645719,-7297.01446395,0.00011,2]
[333835379,1722540645730,-3337.46412,0.00011,2]
[333835380,1722540645742,-3750.898,0.00011,2]
[333835381,1722540645791,-3746.9991,0.00011,2]
[333835382,1722540645879,-4314.85053389,0.00011,2]
[333835383,1722540645890,-299.34121991,0.00011,2]
[333835384,1722540645902,-170508.76432115,0.00011,2]
[333835385,1722540645911,-171144.74066747,0.00011,2]
[333835492,1722541061695,157.65,0.0001337,30]
[333835498,1722541441007,240.36,9.456e-05,2]
[333835500,1722541574741,157.65,0.0001337,30]
[333835530,1722541831659,-336.67668818,9.99e-05,2]
[333835531,1722541831669,-290.05974808,9.99e-05,2]
[333835532,1722541831678,-32.73356374,0.0001089,2]
[333835533,1722541831712,-2967.26643626,0.0001089,2]
[333835534,1722541831722,-349.9736,0.000109,2]
[333835535,1722541831731,-713.8839,0.000109,2]
[333835536,1722541831740,-932.75981424,0.000109,2]
[333835537,1722541831750,-150.0,0.00010959,2]
[333835538,1722541831759,-300.0,0.00010996,2]
[333835539,1722541831769,-1776.21973442,0.00010997,2]
[333835540,1722541831779,-1018.42089926,0.00010999,3]
[333835541,1722541831788,-5521.42600838,0.00010999,2]
[333835542,1722541831798,-499.99,0.00011,2]
[333835543,1722541831807,-2521.86931633,0.00011,2]
[333835544,1722541831818,-1039.39805608,0.00011,2]
[333835545,1722541831870,-364.67036088,0.00011,2]
[333835546,1722541831924,-2127.91,0.00011,2]
[333835547,1722541831936,-7011.24858087,0.00011,2]
[333835565,1722541837616,-4519.65421666,0.00011,2]
[333835579,1722541837826,-655.43194,0.00011,2]
[333835580,1722541837840,-514.74031448,0.00011,2]
[333835581,1722541837850,-1896.67797613,0.00011,2]
[333835582,1722541837864,-2380.21844719,0.00011,2]
[333835583,1722541837875,-2134.14315022,0.00011,2]
[333835611,1722541838291,-1004.0000963,0.00011,2]
[333835612,1722541838302,-546.57203096,0.00011,2]
[333835614,1722541839657,-5553.94082212,0.00011,2]
[333835615,1722541839712,-15820.11966639,0.00011,2]
[333835616,1722541839821,-2224.29601785,0.00011,2]
[333835617,1722541839874,-638341.7719144,0.00011,2]
[333835618,1722541839884,-926208.2280856,0.00011,2]
[333835619,1722541839895,-650.45,0.00011,2]
[333835893,1722541842703,-443.70540952,0.00011,2]
[333835900,1722541842756,-1154.01699993,0.00011,2]
[333835906,1722541842810,-10001.989951,0.00011,2]
[333835998,1722541843753,-250.66117809,0.00011,2]
[333836000,1722541843764,-35466.50043771,0.00011,2]
[333836002,1722541843775,-33848.5,0.00011,2]
[333836208,1722541845802,-1523.78274965,0.00011,2]
[333836220,1722541845908,-973.30801758,0.00011,2]
[333836227,1722541845960,-258326.57620855,0.00011,2]
[333836230,1722541845974,-292.52461614,0.00011,2]
[333836232,1722541845985,-250.10479714,0.00011,2]
[333836234,1722541845996,-815.6971792,0.00011,2]
[333836236,1722541846007,-2124.78082076,0.00011,2]
[333836244,1722541846068,-12460.40395057,0.00011,2]
[333836246,1722541846079,-12780.09052708,0.00011,2]
[333836379,1722541952859,248.1,9.554e-05,2]
[333836387,1722542064131,1397.99221319,0.00027,120]
[333836396,1722542490336,235.69,9.377e-05,2]
[333836436,1722543031874,-223.9,9.521e-05,2]
[333836440,1722543031884,-314.62541533,0.0001089,2]
[333836444,1722543031897,-203.37458467,0.0001089,2]
[333836447,1722543031907,-300.0,0.00010899,2]
[333836449,1722543031917,-252.9943,0.000109,2]
[333836451,1722543031926,-2732.2168,0.000109,2]
[333836453,1722543031936,-1497.4301,0.000109,2]
[333836455,1722543031946,-1386.63621072,0.000109,2]
[333836457,1722543031958,-323.31668928,0.000109,2]
[333836459,1722543031967,-177.13138484,0.000109,2]
[333836461,1722543031977,-2466.83304724,0.000109,2]
[333836463,1722543031986,-732.8603309,0.000109,2]
[333836465,1722543032000,-36776.98429109,0.00011,2]
[333836470,1722543032034,-2818.399724,0.00011,2]
[333836476,1722543032086,-3175.0,0.00011,2]
[333836483,1722543032141,-2643.89930625,0.00011,2]
[333836581,1722543037856,-325.48000003,0.00011,2]
[333836582,1722543038284,-568.94985213,0.00011,2]
[333836583,1722543038296,-453.30570109,0.00011,2]
[333836584,1722543038308,-1780.0858619,0.00011,2]
[333836585,1722543038320,-2926.05442802,0.00011,2]
[333836716,1722543039904,-946.11655832,0.00011,2]
[333836718,1722543039917,-471.52616408,0.00011,2]
[333836723,1722543039957,-19258.45448065,0.00011,2]
[333836729,1722543040011,-664249.01623581,0.00011,2]
[333836731,1722543040022,-1444.57749402,0.00011,2]
[333836737,1722543040065,-39212.85223734,0.00011,2]
[333836739,1722543040078,-254.25,0.00011,2]
[333836750,1722543040170,-1603.97968,0.00011,2]
[333837020,1722543042886,-632.52348141,0.000109,2]
[333837027,1722543042941,-367.47651859,0.000109,2]
[333837029,1722543042950,-1274.86418144,0.00011,2]
[333837031,1722543042961,-24935.22661887,0.00011,2]
[333837036,1722543042995,-494.33920324,0.00011,2]
[333837038,1722543043011,-1625.7938459,0.00011,2]
[333837044,1722543043063,-296.18044634,0.00011,2]
[333837050,1722543043106,-1620.89734673,0.00011,2]
[333837052,1722543043118,-735.84618587,0.00011,2]
[333837108,1722543043643,-9022.73171167,0.00011,2]
[333837475,1722543047222,-2733.97298494,0.00011,2]
[333837477,1722543047233,-7000.0,0.00011,2]
[333837480,1722543047243,-1064.7,0.00011,2]
[333837482,1722543047256,-1450.0,0.00011,2]
[333837484,1722543047267,-1741.15,0.00011,2]
[333837487,1722543047286,-53855.87101786,0.00011,2]
[333837490,1722543047307,-302.5110025,0.00011,2]
[333837492,1722543047318,-4505.86330206,0.00011,2]
[333839255,1722543066564,500.0,0.00027,120]
[333839282,1722543067150,500.0,0.00027,120]
[333839361,1722543067980,500.0,0.00027,120]
[333839365,1722543068022,500.0,0.00027,120]
[333839389,1722543068282,500.0,0.00027,120]
[333839432,1722543068712,500.0,0.00027,120]
[333839456,1722543069036,500.0,0.00027,120]
[333839457,1722543070603,500.0,0.00027,120]